Workbook

Sheet Sallary Arrear
B1: Prepared By:-Ummed Tarad (Teacher,GSSS Raimalwada) Mob.No.-9166973141 Email Add.-ummedtrdedu@gmail.com
B2: Type Of Employee | F2: Already Regular | K2: Employee Category | N2: State Service | Q2: Income Tax Rate | U2: 5% | W2: GPF कटौती | Z2: 0 | AB2: Arear Type | AF2: स्थायीकरण एरियर अंतर तालिका | AZ2: 0% | BA2: State Service
B3: नोट:- सबसे पहले ऊपर उचित डेटा का चयन करें, तत्पश्चात इस शीट में केवल पिंक कलर में दिखाई देने वाले सेल्स में ही उचित एंट्रीज़ करें। खाली पंक्तियों को HIDE कर सकते हो। नीचे के मीनू से उचित डेटा को सिलैक्ट करें। | AZ3: 1% | BA3: Subordinate
B4: कार्यालय:प्रधानाचार्य | AZ4: 2% | BA4: Ministrial
B5: =AF2 -> स्थायीकरण एरियर अंतर तालिका | AZ5: 3% | BA5: Fourth Grade
AZ6: 4%
B7: कार्मिक का नाम:- | Q7: पद:- | Z7: एम्प्लोयी आईडी:- | AG7: RJJO2018………………… | AZ7: 5%
B8: सैलेरी एरियर अवधि: | U8: 2019-03-05 | Z8: से | AA8: 2020-01-31 | AE8: =MONTH(AA8) -> 1 | AH8: =YEAR(AA8) -> 2020 | AO8: =CONCATENATE(AE8,AH8) -> 12020 | AS8: =U8 -> 2019-03-05 | AT8: =DAY(AS8) -> 5 | AU8: =MONTH(E16) -> 3 | AV8: =YEAR(AS8) -> 2019 | AZ8: 6%
B9: S. N0. | C9: MONTH | I9: After Fixation/Revise Pay | O9: Before Fixation/Revise Pay | U9: वेतन का अंतर | AA9: NPS | AD9: CMCoronaRelief | AG9: SI | AJ9: RPMF | AM9: ROP | AN9: INCOME TAX (TDS) | AO9: TOTAL DED. | AP9: NET AMOUNT CASH PAYMENT (ARREAR) | AS9: =IF(AT8=1,0,AS8-1) -> 2019-03-04 | AT9: =DAY(AS9) -> 4 | AU9: =MONTH(C17) -> 4 | AV9: =AT12-AT8+1 -> 27 | AZ9: 7%
I10: BASIC | J10: DA | K10: HRA | L10: CCA | M10: Other Allw. | N10: TOTAL | O10: BASIC | P10: DA | Q10: HRA | R10: CCA | S10: Other Allw. | T10: TOTAL | U10: BASIC | V10: DA | W10: HRA | X10: CCA | Y10: Other Allw. | Z10: TOTAL | AA10: TO BE After Fix Pay | AB10: Before Fixation | AC10: DIFF. | AD10: TO BE After Fix Pay | AE10: Before Fixation | AF10: DIFF. | AG10: TO BE After Fix Pay | AH10: Before Fixation | AI10: DIFF. | AJ10: TO BE After Fix Pay | AK10: Before Fixation | AL10: DIFF. | AS10: =EOMONTH(AS8,-1)+1 -> 2019-03-01 | AT10: =DAY(AS10) -> 1 | AU10: =MONTH(C18) -> 5 | AZ10: 8%
J11: 12% | K11: 8% | M11: Cas.All. | P11: 0% | Q11: 0% | S11: =M11 -> Cas.All. | Y11: =S11 -> Cas.All. | AZ11: 9%
B12: 1 | C12: =U8 -> 2019-03-05 | D12: =IF(D14=AS10,"------",AS10) -> 2019-03-01 | E12: to | F12: =MONTH(C12) -> 3 | G12: =YEAR(C12) -> 2019 | H12: =CONCATENATE(F12,G12) -> 32019 | I12: =ROUND(O12/AT12*AT9,0) -> 3058 | J12: =IF(P12=0,0,I12*J11) -> 0 | K12: =IF(Q12=0,0,I12*K11) -> 0 | L12: 0 | M12: 0 | N12: =SUM(I12:M12) -> 3058 | O12: 23700 | P12: =IF($F$2="Fix To Regular",0,O12*$P$11) -> 0 | Q12: =IF($F$2="Fix To Regular",0,O12*$Q$11) -> 0 | R12: 0 | S12: 0 | T12: =SUM(O12:S12) -> 23700 | U12: =I16-O12 -> 8797 | V12: =J16-P12 -> 5005 | W12: =K16-Q12 -> 2355 | X12: =L16-R12 -> 0 | Y12: =M16-S12 -> 0 | Z12: =SUM(U12:Y16) -> 16157 | AA12: =IF($AA$9="nps",ROUND((I16+J16)*0.1,0),$Z$2) -> 3750 | AB12: =IF($AA$9="nps",ROUND((O12+P12)*0.1,0),$Z$2) -> 2370 | AC12: =AA12-AB12 -> 1380 | AD12: =IF(BF12="SSM",ROUND(I16/31*5,0),IF(BF12="SM",ROUND(I16/31*3,0),IF(BF12="MM",ROUND(I16/31*2,0),IF(BF12="FM",ROUND(I16/31*1,0),IF(BF12="SSS",ROUND(N16/31*2,0),IF(BF12="SS",ROUND(N16/31,0),IF(BF12="MS",ROUND(N16/31,0),IF(BF12="FS",ROUND(N16/31*0,0),IF(BF12="SSO",ROUND(N16/31*2,0),IF(BF12="SO",ROUND(N16/31,0),IF(BF12="MO",ROUND(N16/31,0),IF(BF12="FO",ROUND(N16/31*0,0),0)))))))))))) -> 0 | AE12: =IF(BF12="SSM",ROUND(O12/31*5,0),IF(BF12="SM",ROUND(O12/31*3,0),IF(BF12="MM",ROUND(O12/31*2,0),IF(BF12="FM",ROUND(O12/31*1,0),IF(BF12="SSS",ROUND(T12/31*2,0),IF(BF12="SS",ROUND(T12/31,0),IF(BF12="MS",ROUND(T12/31,0),IF(BF12="FS",ROUND(T12/31*0,0),IF(BF12="SSO",ROUND(T12/31*2,0),IF(BF12="SO",ROUND(T12/31,0),IF(BF12="MO",ROUND(T12/31,0),IF(BF12="FO",ROUND(T12/31*0,0),0)))))))))))) -> 0 | AF12: =AD12-AE12 -> 0 | AG12: 3000 | AH12: 3000 | AI12: =SUM(AG12-AH12) -> 0 | AJ12: 0 | AK12: =AJ12 -> 0 | AL12: =SUM(AJ12-AK12) -> 0 | AM12: 0 | AN12: =(Z12-AC12-AF12)*$U$2 -> 739 | AO12: =AC12+AF12+AI12+AN12+AL12 -> 2119 | AP12: =Z12-AO12-AM12 -> 14038 | AS12: =EOMONTH(AS8,0) -> 2019-03-31 | AT12: 31 | AZ12: 10% | BC12: =IF($N$2="state service",5,IF($N$2="subordinate",3,IF($N$2="ministrial",2,1))) -> 5 | BD12: =H12 -> 32019 | BE12: =BC12+BD12 -> 32024 | BF12: =IF(BE12=32025,"SSM",IF(BE12=32023,"SM",IF(BE12=32022,"MM",IF(BE12=32021,"FM",IF(BE12=92025,"SSS",IF(BE12=92023,"SS",IF(BE12=92022,"MS",IF(BE12=92021,"FS",IF(BE12=102025,"SSO",IF(BE12=102023,"SO",IF(BE12=102022,"MO",IF(BE12=102021,"FO",0)))))))))))) -> 0
D13: =IF(D12="------","------",U8-1) -> 2019-03-04 | F13: =F12 -> 3 | G13: =G12 -> 2019 | H13: 32019 | AZ13: 11%
D14: =U8 -> 2019-03-05 | E14: to | F14: =F13 -> 3 | G14: =G13 -> 2019 | H14: 32019 | I14: =ROUND(AU14/AT12*AV9,0) -> 29439 | J14: =ROUND(I14*17/100,0) -> 5005 | K14: =ROUND(I14*8/100,0) -> 2355 | L14: 0 | M14: 0 | N14: =SUM(I14:M14) -> 36799 | AS14: New Basic ↠ | AU14: =I17 -> 33800 | AZ14: 12%
D15: =AS12 -> 2019-03-31 | F15: 3 | G15: 2019 | H15: 32019 | AZ15: 13%
D16: Total | E16: =C12 -> 2019-03-05 | F16: 3 | G16: 2019 | H16: 32019 | I16: =I14+I12 -> 32497 | J16: =J14+J12 -> 5005 | K16: =K14+K12 -> 2355 | L16: =L14+L12 -> 0 | M16: 0 | N16: =N14+N12 -> 39857 | AX16: =E16 -> 2019-03-05 | AZ16: 14%
B17: =IF(C17=0,0,B12+1) -> 2 | C17: =IF(H16=$AO$8,0,AX17) -> 2019-04-05 | F17: =MONTH(C17) -> 4 | G17: =YEAR(C17) -> 2019 | H17: =CONCATENATE(F17,G17) -> 42019 | I17: 33800 | J17: =ROUND(I17*17/100,0) -> 5746 | K17: =ROUND(I17*8/100,0) -> 2704 | L17: 0 | M17: 0 | N17: =SUM(I17:M17) -> 42250 | O17: =IF(C17=0,0,O12) -> 23700 | P17: =IF($F$2="Fix To Regular",0,O17*$P$11) -> 0 | Q17: =IF($F$2="Fix To Regular",0,O17*$Q$11) -> 0 | R17: 0 | S17: 0 | T17: =SUM(O17:S17) -> 23700 | U17: =I17-O17 -> 10100 | V17: =J17-P17 -> 5746 | W17: =K17-Q17 -> 2704 | X17: =L17-R17 -> 0 | Y17: =M17-S17 -> 0 | Z17: =SUM(U17:Y17) -> 18550 | AA17: =IF($AA$9="nps",ROUND((I17+J17)*0.1,0),$Z$2) -> 3955 | AB17: =IF($AA$9="nps",ROUND((O17+P17)*0.1,0),$Z$2) -> 2370 | AC17: =AA17-AB17 -> 1585 | AD17: =IF(BF17="SSM",ROUND(I17/31*5,0),IF(BF17="SM",ROUND(I17/31*3,0),IF(BF17="MM",ROUND(I17/31*2,0),IF(BF17="FM",ROUND(I17/31*1,0),IF(BF17="SSS",ROUND(N17/31*2,0),IF(BF17="SS",ROUND(N17/31,0),IF(BF17="MS",ROUND(N17/31,0),IF(BF17="FS",ROUND(N17/31*0,0),IF(BF17="SSO",ROUND(N17/31*2,0),IF(BF17="SO",ROUND(N17/31,0),IF(BF17="MO",ROUND(N17/31,0),IF(BF17="FO",ROUND(N17/31*0,0),0)))))))))))) -> 0 | AE17: =IF(BF17="SSM",ROUND(O17/31*5,0),IF(BF17="SM",ROUND(O17/31*3,0),IF(BF17="MM",ROUND(O17/31*2,0),IF(BF17="FM",ROUND(O17/31*1,0),IF(BF17="SSS",ROUND(T17/31*2,0),IF(BF17="SS",ROUND(T17/31,0),IF(BF17="MS",ROUND(T17/31,0),IF(BF17="FS",ROUND(T17/31*0,0),IF(BF17="SSO",ROUND(T17/31*2,0),IF(BF17="SO",ROUND(T17/31,0),IF(BF17="MO",ROUND(T17/31,0),IF(BF17="FO",ROUND(T17/31*0,0),0)))))))))))) -> 0 | AF17: =AD17-AE17 -> 0 | AG17: =AG12 -> 3000 | AH17: =AH12 -> 3000 | AI17: =AI12 -> 0 | AJ17: 0 | AK17: =AJ17 -> 0 | AL17: =AJ17-AK17 -> 0 | AM17: 0 | AN17: =(Z17-AC17-AF17)*$U$2 -> 848 | AO17: =AC17+AF17+AI17+AN17+AL17 -> 2433 | AP17: =Z17-AO17-AM12 -> 16117 | AX17: =AX16+31 -> 2019-04-05 | AZ17: 15% | BC17: =IF($N$2="state service",5,IF($N$2="subordinate",3,IF($N$2="ministrial",2,1))) -> 5 | BD17: =H17 -> 42019 | BE17: =BC17+BD17 -> 42024 | BF17: =IF(BE17=32025,"SSM",IF(BE17=32023,"SM",IF(BE17=32022,"MM",IF(BE17=32021,"FM",IF(BE17=92025,"SSS",IF(BE17=92023,"SS",IF(BE17=92022,"MS",IF(BE17=92021,"FS",IF(BE17=102025,"SSO",IF(BE17=102023,"SO",IF(BE17=102022,"MO",IF(BE17=102021,"FO",0)))))))))))) -> 0
B18: =IF(C18=0,0,B17+1) -> 3 | C18: =IF(H17=$AO$8,0,IF(C17=0,0,AX18)) -> 2019-05-06 | F18: =MONTH(C18) -> 5 | G18: =YEAR(C18) -> 2019 | H18: =CONCATENATE(F18,G18) -> 52019 | I18: =IF(C18=0,0,IF(F18=7,ROUND(I17*103%,-2),I17)) -> 33800 | J18: =ROUND(I18*17/100,0) -> 5746 | K18: 2704 | L18: 0 | M18: 0 | N18: =SUM(I18:M18) -> 42250 | O18: =IF(C18=0,0,O17) -> 23700 | P18: =IF($F$2="Fix To Regular",0,O18*$P$11) -> 0 | Q18: =IF($F$2="Fix To Regular",0,O18*$Q$11) -> 0 | R18: 0 | S18: 0 | T18: =SUM(O18:S18) -> 23700 | U18: =I18-O18 -> 10100 | V18: =J18-P18 -> 5746 | W18: =K18-Q18 -> 2704 | X18: =L18-R18 -> 0 | Y18: =M18-S18 -> 0 | Z18: =SUM(U18:Y18) -> 18550 | AA18: =IF($AA$9="nps",ROUND((I18+J18)*0.1,0),$Z$2) -> 3955 | AB18: =IF($AA$9="nps",ROUND((O18+P18)*0.1,0),$Z$2) -> 2370 | AC18: =AA18-AB18 -> 1585 | AD18: =IF(BF18="SSM",ROUND(I18/31*5,0),IF(BF18="SM",ROUND(I18/31*3,0),IF(BF18="MM",ROUND(I18/31*2,0),IF(BF18="FM",ROUND(I18/31*1,0),IF(BF18="SSS",ROUND(N18/31*2,0),IF(BF18="SS",ROUND(N18/31,0),IF(BF18="MS",ROUND(N18/31,0),IF(BF18="FS",ROUND(N18/31*0,0),IF(BF18="SSO",ROUND(N18/31*2,0),IF(BF18="SO",ROUND(N18/31,0),IF(BF18="MO",ROUND(N18/31,0),IF(BF18="FO",ROUND(N18/31*0,0),0)))))))))))) -> 0 | AE18: =IF(BF18="SSM",ROUND(O18/31*5,0),IF(BF18="SM",ROUND(O18/31*3,0),IF(BF18="MM",ROUND(O18/31*2,0),IF(BF18="FM",ROUND(O18/31*1,0),IF(BF18="SSS",ROUND(T18/31*2,0),IF(BF18="SS",ROUND(T18/31,0),IF(BF18="MS",ROUND(T18/31,0),IF(BF18="FS",ROUND(T18/31*0,0),IF(BF18="SSO",ROUND(T18/31*2,0),IF(BF18="SO",ROUND(T18/31,0),IF(BF18="MO",ROUND(T18/31,0),IF(BF18="FO",ROUND(T18/31*0,0),0)))))))))))) -> 0 | AF18: 0 | AG18: =IF(C18=0,0,AG17) -> 3000 | AH18: =IF(C18=0,0,AH17) -> 3000 | AI18: =AI15 -> 0 | AJ18: 0 | AK18: =AJ18 -> 0 | AL18: =AJ18-AK18 -> 0 | AM18: 0 | AN18: =(Z18-AC18-AF18)*$U$2 -> 848 | AO18: =AC18+AF18+AI18+AN18+AL18 -> 2433 | AP18: =Z18-AO18-AM13 -> 16117 | AX18: =AX17+31 -> 2019-05-06 | AZ18: 16% | BC18: =IF($N$2="state service",5,IF($N$2="subordinate",3,IF($N$2="ministrial",2,1))) -> 5 | BD18: =H18 -> 52019 | BE18: =BC18+BD18 -> 52024 | BF18: =IF(BE18=32025,"SSM",IF(BE18=32023,"SM",IF(BE18=32022,"MM",IF(BE18=32021,"FM",IF(BE18=92025,"SSS",IF(BE18=92023,"SS",IF(BE18=92022,"MS",IF(BE18=92021,"FS",IF(BE18=102025,"SSO",IF(BE18=102023,"SO",IF(BE18=102022,"MO",IF(BE18=102021,"FO",0)))))))))))) -> 0
B19: =IF(C19=0,0,B18+1) -> 4 | C19: 2019-06-06 | F19: 6 | G19: 2019 | H19: 62019 | I19: =IF(C19=0,0,IF(F19=7,ROUND(I18*103%,-2),I18)) -> 33800 | J19: =ROUND(I19*17/100,0) -> 5746 | K19: =ROUND(I19*8/100,0) -> 2704 | L19: 0 | M19: 0 | N19: 42250 | O19: =IF(C19=0,0,O18) -> 23700 | P19: =IF($F$2="Fix To Regular",0,O19*$P$11) -> 0 | Q19: =IF($F$2="Fix To Regular",0,O19*$Q$11) -> 0 | R19: 0 | S19: 0 | T19: 23700 | U19: =I19-O19 -> 10100 | V19: =J19-P19 -> 5746 | W19: =K19-Q19 -> 2704 | X19: =L19-R19 -> 0 | Y19: =M19-S19 -> 0 | Z19: =SUM(U19:Y19) -> 18550 | AA19: 3955 | AB19: 2370 | AC19: =AA19-AB19 -> 1585 | AD19: 0 | AE19: 0 | AF19: =AD19-AE19 -> 0 | AG19: =IF(C19=0,0,AG18) -> 3000 | AH19: =IF(C19=0,0,AH18) -> 3000 | AI19: =AI16 -> 0 | AJ19: 0 | AK19: 0 | AL19: 0 | AM19: 0 | AN19: 848 | AO19: =AC19+AF19+AI19+AN19+AL19 -> 2433 | AP19: 16117 | AX19: 2019-06-06 | AZ19: 17% | BC19: 5 | BD19: 62019 | BE19: 62024 | BF19: 0
B20: 5 | C20: 2019-07-07 | F20: 7 | G20: 2019 | H20: 72019 | I20: 34800 | J20: 5916 | K20: 2784 | L20: 0 | M20: 0 | N20: 43500 | O20: 23700 | P20: =IF($F$2="Fix To Regular",0,O20*$P$11) -> 0 | Q20: =IF($F$2="Fix To Regular",0,O20*$Q$11) -> 0 | R20: 0 | S20: 0 | T20: 23700 | U20: =I20-O20 -> 11100 | V20: =J20-P20 -> 5916 | W20: =K20-Q20 -> 2784 | X20: =L20-R20 -> 0 | Y20: =M20-S20 -> 0 | Z20: =SUM(U20:Y20) -> 19800 | AA20: 4072 | AB20: 2370 | AC20: =AA20-AB20 -> 1702 | AD20: 0 | AE20: 0 | AF20: 0 | AG20: 3000 | AH20: 3000 | AI20: =AI17 -> 0 | AJ20: 0 | AK20: 0 | AL20: 0 | AM20: 0 | AN20: 905 | AO20: =AC20+AF20+AI20+AN20+AL20 -> 2607 | AP20: 17193 | AX20: 2019-07-07 | AZ20: 18% | BC20: 5 | BD20: 72019 | BE20: 72024 | BF20: 0
B21: 6 | C21: 2019-08-07 | F21: 8 | G21: 2019 | H21: 82019 | I21: =IF(C21=0,0,IF(F21=7,ROUND(I20*103%,-2),I20)) -> 34800 | J21: 5916 | K21: 2784 | L21: 0 | M21: 0 | N21: 43500 | O21: 23700 | P21: =IF($F$2="Fix To Regular",0,O21*$P$11) -> 0 | Q21: =IF($F$2="Fix To Regular",0,O21*$Q$11) -> 0 | R21: 0 | S21: 0 | T21: 23700 | U21: =I21-O21 -> 11100 | V21: =J21-P21 -> 5916 | W21: =K21-Q21 -> 2784 | X21: =L21-R21 -> 0 | Y21: =M21-S21 -> 0 | Z21: =SUM(U21:Y21) -> 19800 | AA21: 4072 | AB21: 2370 | AC21: =AA21-AB21 -> 1702 | AD21: 0 | AE21: 0 | AF21: 0 | AG21: 3000 | AH21: 3000 | AI21: =AI18 -> 0 | AJ21: 0 | AK21: 0 | AL21: 0 | AM21: 0 | AN21: 905 | AO21: =AC21+AF21+AI21+AN21+AL21 -> 2607 | AP21: 17193 | AX21: 2019-08-07 | AZ21: 19% | BC21: 5 | BD21: 82019 | BE21: 82024 | BF21: 0
B22: 7 | C22: 2019-09-07 | F22: 9 | G22: 2019 | H22: 92019 | I22: =IF(C22=0,0,IF(F22=7,ROUND(I21*103%,-2),I21)) -> 34800 | J22: 5916 | K22: 2784 | L22: 0 | M22: 0 | N22: 43500 | O22: 23700 | P22: =IF($F$2="Fix To Regular",0,O22*$P$11) -> 0 | Q22: =IF($F$2="Fix To Regular",0,O22*$Q$11) -> 0 | R22: 0 | S22: 0 | T22: 23700 | U22: =I22-O22 -> 11100 | V22: =J22-P22 -> 5916 | W22: =K22-Q22 -> 2784 | X22: =L22-R22 -> 0 | Y22: =M22-S22 -> 0 | Z22: =SUM(U22:Y22) -> 19800 | AA22: 4072 | AB22: 2370 | AC22: =AA22-AB22 -> 1702 | AD22: 0 | AE22: 0 | AF22: 0 | AG22: 3000 | AH22: 3000 | AI22: =AI19 -> 0 | AJ22: 0 | AK22: 0 | AL22: 0 | AM22: 0 | AN22: 905 | AO22: =AC22+AF22+AI22+AN22+AL22 -> 2607 | AP22: 17193 | AX22: 2019-09-07 | AZ22: 20% | BC22: 5 | BD22: 92019 | BE22: 92024 | BF22: 0
B23: 8 | C23: 2019-10-08 | F23: 10 | G23: 2019 | H23: 102019 | I23: 34800 | J23: 5916 | K23: 2784 | L23: 0 | M23: 0 | N23: 43500 | O23: 23700 | P23: =IF($F$2="Fix To Regular",0,O23*$P$11) -> 0 | Q23: =IF($F$2="Fix To Regular",0,O23*$Q$11) -> 0 | R23: 0 | S23: 0 | T23: 23700 | U23: =I23-O23 -> 11100 | V23: =J23-P23 -> 5916 | W23: =K23-Q23 -> 2784 | X23: =L23-R23 -> 0 | Y23: =M23-S23 -> 0 | Z23: =SUM(U23:Y23) -> 19800 | AA23: 4072 | AB23: 2370 | AC23: =AA23-AB23 -> 1702 | AD23: 0 | AE23: 0 | AF23: 0 | AG23: 3000 | AH23: 3000 | AI23: =AI20 -> 0 | AJ23: 0 | AK23: 0 | AL23: 0 | AM23: 0 | AN23: 905 | AO23: =AC23+AF23+AI23+AN23+AL23 -> 2607 | AP23: 17193 | AX23: 2019-10-08 | AZ23: 21% | BC23: 5 | BD23: 102019 | BE23: 102024 | BF23: 0
B24: 9 | C24: 2019-11-08 | F24: 11 | G24: 2019 | H24: 112019 | I24: 34800 | J24: 5916 | K24: 2784 | L24: 0 | M24: 0 | N24: 43500 | O24: 23700 | P24: =IF($F$2="Fix To Regular",0,O24*$P$11) -> 0 | Q24: =IF($F$2="Fix To Regular",0,O24*$Q$11) -> 0 | R24: 0 | S24: 0 | T24: 23700 | U24: =I24-O24 -> 11100 | V24: =J24-P24 -> 5916 | W24: =K24-Q24 -> 2784 | X24: =L24-R24 -> 0 | Y24: =M24-S24 -> 0 | Z24: =SUM(U24:Y24) -> 19800 | AA24: 4072 | AB24: 2370 | AC24: =AA24-AB24 -> 1702 | AD24: 0 | AE24: 0 | AF24: 0 | AG24: 3000 | AH24: 3000 | AI24: =AI21 -> 0 | AJ24: 0 | AK24: 0 | AL24: 0 | AM24: 0 | AN24: 905 | AO24: =AC24+AF24+AI24+AN24+AL24 -> 2607 | AP24: 17193 | AX24: 2019-11-08 | AZ24: 22% | BC24: 5 | BD24: 112019 | BE24: 112024 | BF24: 0
B25: 10 | C25: 2019-12-09 | F25: 12 | G25: 2019 | H25: 122019 | I25: 34800 | J25: 5916 | K25: 2784 | L25: 0 | M25: 0 | N25: 43500 | O25: 23700 | P25: =IF($F$2="Fix To Regular",0,O25*$P$11) -> 0 | Q25: =IF($F$2="Fix To Regular",0,O25*$Q$11) -> 0 | R25: 0 | S25: 0 | T25: 23700 | U25: =I25-O25 -> 11100 | V25: =J25-P25 -> 5916 | W25: =K25-Q25 -> 2784 | X25: =L25-R25 -> 0 | Y25: =M25-S25 -> 0 | Z25: =SUM(U25:Y25) -> 19800 | AA25: 4072 | AB25: 2370 | AC25: =AA25-AB25 -> 1702 | AD25: 0 | AE25: 0 | AF25: 0 | AG25: 3000 | AH25: 3000 | AI25: =AI22 -> 0 | AJ25: 0 | AK25: 0 | AL25: 0 | AM25: 0 | AN25: 905 | AO25: =AC25+AF25+AI25+AN25+AL25 -> 2607 | AP25: 17193 | AX25: 2019-12-09 | AZ25: 23% | BC25: 5 | BD25: 122019 | BE25: 122024 | BF25: 0
B26: 11 | C26: 2020-01-09 | F26: 1 | G26: 2020 | H26: 12020 | I26: 34800 | J26: 5916 | K26: 2784 | L26: 0 | M26: 0 | N26: 43500 | O26: 23700 | P26: =IF($F$2="Fix To Regular",0,O26*$P$11) -> 0 | Q26: =IF($F$2="Fix To Regular",0,O26*$Q$11) -> 0 | R26: 0 | S26: 0 | T26: 23700 | U26: =I26-O26 -> 11100 | V26: =J26-P26 -> 5916 | W26: =K26-Q26 -> 2784 | X26: =L26-R26 -> 0 | Y26: =M26-S26 -> 0 | Z26: =SUM(U26:Y26) -> 19800 | AA26: 4072 | AB26: 2370 | AC26: =AA26-AB26 -> 1702 | AD26: 0 | AE26: 0 | AF26: 0 | AG26: 3000 | AH26: 3000 | AI26: =AI23 -> 0 | AJ26: 0 | AK26: 0 | AL26: 0 | AM26: 0 | AN26: 905 | AO26: =AC26+AF26+AI26+AN26+AL26 -> 2607 | AP26: 17193 | AX26: 2020-01-09 | AZ26: 24% | BC26: 5 | BD26: 12020 | BE26: 12025 | BF26: 0
B27: 0 | C27: 00:00:00 | F27: 1 | G27: 1900 | H27: 11900 | I27: 0 | J27: 0 | K27: 0 | L27: 0 | M27: 0 | N27: 0 | O27: =IF(C27=0,0,O26) -> 0 | P27: =IF($F$2="Fix To Regular",0,O27*$P$11) -> 0 | Q27: =IF($F$2="Fix To Regular",0,O27*$Q$11) -> 0 | R27: 0 | S27: 0 | T27: 0 | U27: =I27-O27 -> 0 | V27: =J27-P27 -> 0 | W27: =K27-Q27 -> 0 | X27: =L27-R27 -> 0 | Y27: =M27-S27 -> 0 | Z27: =SUM(U27:Y27) -> 0 | AA27: 0 | AB27: 0 | AC27: =AA27-AB27 -> 0 | AD27: 0 | AE27: 0 | AF27: 0 | AG27: 0 | AH27: 0 | AI27: =AI24 -> 0 | AJ27: 0 | AK27: 0 | AL27: 0 | AM27: 0 | AN27: 0 | AO27: =AC27+AF27+AI27+AN27+AL27 -> 0 | AP27: 0 | AX27: 2020-02-09 | AZ27: 25% | BC27: 5 | BD27: 11900 | BE27: 11905 | BF27: 0
B28: 0 | C28: 00:00:00 | F28: 1 | G28: 1900 | H28: 11900 | I28: 0 | J28: 0 | K28: 0 | L28: 0 | M28: 0 | N28: 0 | O28: 0 | P28: =IF($F$2="Fix To Regular",0,O28*$P$11) -> 0 | Q28: =IF($F$2="Fix To Regular",0,O28*$Q$11) -> 0 | R28: 0 | S28: 0 | T28: 0 | U28: =I28-O28 -> 0 | V28: =J28-P28 -> 0 | W28: =K28-Q28 -> 0 | X28: =L28-R28 -> 0 | Y28: =M28-S28 -> 0 | Z28: =SUM(U28:Y28) -> 0 | AA28: 0 | AB28: 0 | AC28: =AA28-AB28 -> 0 | AD28: 0 | AE28: 0 | AF28: 0 | AG28: 0 | AH28: 0 | AI28: =AI25 -> 0 | AJ28: 0 | AK28: 0 | AL28: 0 | AM28: 0 | AN28: 0 | AO28: =AC28+AF28+AI28+AN28+AL28 -> 0 | AP28: 0 | AX28: 2020-03-11 | AZ28: 26% | BC28: 5 | BD28: 11900 | BE28: 11905 | BF28: 0
B29: Total | I29: =SUM(ROUND(I16:I28,0)) -> 377497 | J29: =SUM(ROUND(J16:J28,0)) -> 63655 | K29: =SUM(ROUND(K16:K28,0)) -> 29955 | N29: =SUM(ROUND(N16:N28,0)) -> 471107 | O29: =SUM(ROUND(O12:O28,0)) -> 260700 | P29: =SUM(ROUND(P12:P28,0)) -> 0 | Q29: =SUM(ROUND(Q12:Q28,0)) -> 0 | T29: =SUM(ROUND(T12:T28,0)) -> 260700 | U29: =SUM(ROUND(U12:U28,0)) -> 116797 | V29: =SUM(ROUND(V12:V28,0)) -> 63655 | W29: =SUM(ROUND(W12:W28,0)) -> 29955 | Z29: =SUM(ROUND(Z12:Z28,0)) -> 210407 | AA29: =SUM(ROUND(AA12:AA28,0)) -> 44119 | AB29: =SUM(ROUND(AB12:AB28,0)) -> 26070 | AC29: =SUM(ROUND(AC12:AC28,0)) -> 18049 | AD29: =SUM(ROUND(AD12:AD28,0)) -> 0 | AE29: =SUM(ROUND(AE12:AE28,0)) -> 0 | AF29: =SUM(ROUND(AF12:AF28,0)) -> 0 | AG29: =SUM(ROUND(AG12:AG28,0)) -> 33000 | AH29: =SUM(ROUND(AH12:AH28,0)) -> 33000 | AI29: =SUM(ROUND(AI12:AI28,0)) -> 0 | AJ29: =SUM(ROUND(AJ12:AJ28,0)) -> 0 | AK29: =SUM(ROUND(AK12:AK28,0)) -> 0 | AL29: =SUM(ROUND(AL12:AL28,0)) -> 0 | AM29: =SUM(ROUND(AM12:AM28,0)) -> 0 | AN29: =SUM(ROUND(AN12:AN28,0)) -> 9618 | AO29: =SUM(ROUND(AO12:AO28,0)) -> 27667 | AP29: =SUM(ROUND(AP12:AP28,0)) -> 182740 | AZ29: 27%
B30: Total Allowances And Deuctions Summry | Z30: Amount in words :- | AZ30: 28%
B31: 1- | C31: Allowances (Difference) | I31: Basic | P31: =U29 -> 116797 | Z31: =SpellNumber(P42) ->  | AZ31: 29%
B32: 2- | I32: D.A. | P32: =V29 -> 63655 | AZ32: 30%
B33: 3- | I33: H.R.A. | P33: =W29 -> 29955 | AZ33: 31%
I34: Total Allowances | P34: =Z29 -> 210407 | Z34: हस्ताक्षर डीडीओ मय मुहर | AZ34: 32%
B35: 1- | C35: Deductions | I35: GPF/NPS | P35: =AC29 -> 18049 | AZ35: 33%
B36: 2- | I36: CM Corona Relief | P36: =AF29 -> 0 | AZ36: 34%
B37: 3- | I37: SI | P37: =AI29 -> 0 | AZ37: 35%
B38: 4- | I38: Income Tax | P38: =AN29 -> 9618 | AZ38: 36%
B39: 5- | I39: RPMF | P39: =AL29 -> 0
I40: Total Deductions | P40: =AO29 -> 27667 | AZ40: 37%
B41: ROP | P41: =AM29 -> 0 | AZ41: 38%
B42: NET AMOUNT TO BE PAY | P42: =AP29 -> 182740 | AZ42: 39%
AZ43: 40%
AZ44: 41%
AZ45: 42%
AZ46: 43%
AZ47: 44%
AZ48: 45%
AZ49: 46%
AZ50: 47%
AZ51: 48%
AZ52: 49%
AZ53: 50%
AZ54: 51%
AZ55: 52%
AZ56: 53%
AZ57: 54%
AZ58: 55%
AZ59: 56%
AZ60: 57%
AZ61: 58%
AZ62: 59%
AZ63: 60%
AZ64: 61%
AZ65: 62%
AZ66: 63%
AZ67: 64%
AZ68: 65%
AZ69: 66%
AZ70: 67%
AZ71: 68%
AZ72: 69%
AZ73: 70%
AZ74: 71%
AZ75: 72%
AZ76: 73%
AZ77: 74%
AZ78: 75%
AZ79: 76%
AZ80: 77%
AZ81: 78%
AZ82: 79%
AZ83: 80%
AZ84: 81%
AZ85: 82%
AZ86: 83%
AZ87: 84%
AZ88: 85%
AZ89: 86%
AZ90: 87%
AZ91: 88%
AZ92: 89%
AZ93: 90%
AZ94: 91%
AZ95: 92%
AZ96: 93%
AZ97: 94%
AZ98: 95%
AZ99: 96%
AZ100: 97%
AZ101: 98%
AZ102: 99%
AZ103: 100%
AZ104: 101%
AZ105: 102%
AZ106: 103%
AZ107: 104%
AZ108: 105%
AZ109: 106%
AZ110: 107%
AZ111: 108%
AZ112: 109%
AZ113: 110%
AZ114: 111%
AZ115: 112%
AZ116: 113%
AZ117: 114%
AZ118: 115%
AZ119: 116%
AZ120: 117%
AZ121: 118%
AZ122: 119%
AZ123: 120%
AZ124: 121%
AZ125: 122%
AZ126: 123%
AZ127: 124%
AZ128: 125%
AZ129: 126%
AZ130: 127%
AZ131: 128%
AZ132: 129%
AZ133: 130%
AZ134: 131%
AZ135: 132%
AZ136: 133%
AZ137: 134%
AZ138: 135%
AZ139: 136%
AZ140: 137%
AZ141: 138%
AZ142: 139%
AZ143: 140%
AZ144: 141%
AZ145: 142%
AZ146: 143%
AZ147: 144%
AZ148: 145%
AZ149: 146%
AZ150: 147%
AZ151: 148%
AZ152: 149%
AZ153: 150%
AZ154: 151%
AZ155: 152%
AZ156: 153%
AZ157: 154%
AZ158: 155%
AZ159: 156%
AZ160: 157%
AZ161: 158%
AZ162: 159%
AZ163: 160%
AZ164: 161%
AZ165: 162%
AZ166: 163%
AZ167: 164%
AZ168: 165%
AZ169: 166%
AZ170: 167%
AZ171: 168%
AZ172: 169%
AZ173: 170%
AZ174: 171%
AZ175: 172%
AZ176: 173%
AZ177: 174%
AZ178: 175%
AZ179: 176%
AZ180: 177%
AZ181: 178%
AZ182: 179%
AZ183: 180%
AZ184: 181%
AZ185: 182%
AZ186: 183%
AZ187: 184%
AZ188: 185%
AZ189: 186%
AZ190: 187%
AZ191: 188%
AZ192: 189%
AZ193: 190%
AZ194: 191%
AZ195: 192%
AZ196: 193%
AZ197: 194%
AZ198: 195%
AZ199: 196%
AZ200: 197%
... 3 more rows
